Cogmind - Beta 16 @@@ ROGUE MODE // 2025.11.20 @ 15:49:46 Player: Naughtyusername Result: Self-destructed Performance ------------- Evolutions (6) 3000 Regions Visited (23) 4600 Robots Destroyed (176) 880 Value Destroyed (4463) 4463 Prototype IDs (107) 2140 Alien Tech Used (2) 400 Bonus (3934) 3934 TOTAL SCORE: 19417 Bonus ------- High Alert Combat Kills 201 Follower Combat Kills 349 Destroyed Unchained 1000 Forged Quantum Companion 1000 Registered with UFD 300 Met Optimus in HQ 500 Met Data Miner 300 Met Zhirov 300 Friendly Fire -16 Cogmind --------- Core Integrity 176/1150 Matter 275/300 Energy 16/100 System Corruption 10% Temperature Cool (0) Movement Core (50) Location -4/Factory Parts ------- > --- POWER (2) -------- (None) > --- PROPULSION (7) --- Cooled Nuclear Pulse Thruster > --- UTILITY (9) ------ Experimental Signal Interpreter Advanced Melee Analysis Suite Core Analyzer Advanced Hacking Suite A0-MCA's Component Scanner > --- WEAPON (2) ------- Quantum Companion > --- INVENTORY (5) ---- Impulse Thruster Experimental Heat Sink ECM Suite Matter Neutralizer Mini Smartbomb Launcher Peak State ------------ > --- POWER ------------ Fusion Reactor Mini Fusion Reactor > --- PROPULSION ------- Cooled Cesium-ion Thruster Cooled Cesium-ion Thruster Cooled Cesium-ion Thruster Cooled Cesium-ion Thruster Cooled Cesium-ion Thruster Nuclear Pulse Array > --- UTILITY ---------- Large Storage Unit Advanced Sensor Array Experimental Signal Interpreter Core Analyzer Layered Medium Armor Plating Improved Hacking Suite Advanced System Shield Advanced System Shield A0-MCA's Component Scanner > --- WEAPON ----------- Mini Grenade Launcher Quantum Companion > --- INVENTORY -------- Improved Ion Engine Cooled Cesium-ion Thruster Cooled Cesium-ion Thruster Cooled Cesium-ion Thruster Cooled Cesium-ion Thruster Cooled Cesium-ion Thruster Advanced Melee Analysis Suite ECM Suite Experimental Propulsion Shielding Graphene Brace Hacking Suite Trap Extractor Transdimensional Reconstructor Matter Neutralizer [Rating: 128] Favorites ----------- Power Cooled Ion Engine Engine Cooled Ion Engine Power Core Micro Fission Core Reactor Mini Fusion Reactor Propulsion Light Treads Treads Light Treads Leg Armored Leg Wheel Wheel Hover Unit Gyrokinetic Inverter Flight Unit Cooled Cesium-ion Thruster Utility Large Storage Unit Device Seismic Detector Storage Large Storage Unit Processor Experimental Signal Interpreter Hackware Hacking Suite Protection Medium Armor Plating Weapon Improved Assault Rifle Energy Gun Improved EM Shotgun Energy Cannon Cooled Plasma Cannon Ballistic Gun Improved Assault Rifle Launcher Mini Grenade Launcher Impact Weapon Mace Slashing Weapon Companion Sword Special Melee Weapon Improved Datajack Build | -11 -10 -10 -9 -9 -9 -9 -6 -6 -6 -6 -6 -6 -5 -5 -5 -5 -5 -5 -5 -4 -4 -4 -4 ------- Run | Yrd Mat Min Mat Sto Rec Scr Fac Was Fac Low Low Dat Pro Fac Was Fac Upp Upp Zhi Pro Fac Was Fac Slots Evolved 12 | . . . 2 . . . 6 . . . . . . 2 . . . . . . 2 . . Power 1 | . . . . . . . . . . . . . . 1 . . . . . . . . . Propulsion 4 | . . . 1 . . . 2 . . . . . . . . . . . . . 1 . . Utility 7 | . . . 1 . . . 4 . . . . . . 1 . . . . . . 1 . . Weapon . | . . . . . . . . . . . . . . . . . . . . . . . . Parts Attached 168 | 7 7 7 26 19 4 4 23 1 12 . . . 1 17 . 5 . . 2 . 29 1 3 Power 22 | 2 1 2 4 2 . . 1 1 1 . . . . 4 . . . . 1 . 2 . 1 Engine 13 | 2 1 1 4 2 . . 1 . . . . . . . . . . . . . 1 . 1 Core 6 | . . 1 . . . . . 1 . . . . . 4 . . . . . . . . . Reactor 3 | . . . . . . . . . 1 . . . . . . . . . 1 . 1 . . Propulsion 60 | 2 1 2 10 6 3 2 8 . 5 . . . . 7 . 1 . . . . 12 . 1 Treads 24 | 2 . 2 10 5 3 2 . . . . . . . . . . . . . . . . . Leg 2 | . . . . . . . 2 . . . . . . . . . . . . . . . . Wheel 1 | . 1 . . . . . . . . . . . . . . . . . . . . . . Hover 1 | . . . . . . . . . . . . . . . . . . . . . 1 . . Flight 32 | . . . . 1 . . 6 . 5 . . . . 7 . 1 . . . . 11 . 1 Utility 58 | 1 3 1 8 4 . 1 11 . 5 . . . 1 6 . 4 . . 1 . 10 1 1 Device 19 | . 2 . 3 2 . 1 3 . 1 . . . . 2 . 2 . . . . 2 . 1 Storage 4 | 1 1 . 1 . . . . . . . . . . . . . . . . . 1 . . Processor 6 | . . . . . . . 3 . 1 . . . . . . . . . . . 2 . . Hackware 13 | . . . . . . . 3 . 1 . . . . 1 . 2 . . 1 . 4 1 . Protection 16 | . . 1 4 2 . . 2 . 2 . . . 1 3 . . . . . . 1 . . Artifact . | . . . . . . . . . . . . . . . . . . . . . . . . Weapon 28 | 2 2 2 4 7 1 1 3 . 1 . . . . . . . . . . . 5 . . Energy Gun 2 | . . . 1 1 . . . . . . . . . . . . . . . . . . . Energy Cannon 5 | . . . . 1 . . 2 . 1 . . . . . . . . . . . 1 . . Ballistic Gun 12 | 2 1 1 3 3 1 . . . . . . . . . . . . . . . 1 . . Ballistic Cannon . | . . . . . . . . . . . . . . . . . . . . . . . . Launcher 3 | . 1 . . . . . 1 . . . . . . . . . . . . . 1 . . Special Weapon . | . . . . . . . . . . . . . . . . . . . . . . . . Impact Weapon 3 | . . 1 . 1 . . . . . . . . . . . . . . . . 1 . . Slashing Weapon 1 | . . . . . . 1 . . . . . . . . . . . . . . . . . Piercing Weapon . | . . . . . . . . . . . . . . . . . . . . . . . . Special Melee Weapon 2 | . . . . 1 . . . . . . . . . . . . . . . . 1 . . Unidentified Prototypes 12 | . . . 3 4 . 1 2 . . . 1 . . . . . . . 1 . . . . Parts Lost 44 | . 1 1 7 5 . . 2 . . . . 2 . 2 . 1 . . . . 12 3 8 Power 5 | . . . 1 . . . . . . . . . . . . . . . . . 2 1 1 Propulsion 21 | . 1 1 2 2 . . 1 . . . . 2 . 1 . . . . . . 6 1 4 Utility 12 | . . . 2 1 . . 1 . . . . . . 1 . . . . . . 3 1 3 Weapon 6 | . . . 2 2 . . . . . . . . . . . 1 . . . . 1 . . Highest Loss Streak 8 | . 1 1 3 5 . . 1 . . . . 2 . 2 . 1 . . . . 7 3 8 To Critical Strikes 1 | . . . . . . . . . . . . . . . . 1 . . . . . . . Average Backups 9 | 1 7 9 12 14 15 13 6 3 3 4 3 3 3 3 4 4 4 4 4 5 12 15 14 Power . | . 1 1 1 1 1 . 1 . . . . . . . 1 . . . . . . . . Propulsion 1 | . . 2 3 2 2 1 . . . 1 . . . . . . . . . . 2 3 2 Utility 3 | . 2 2 3 4 5 4 2 2 1 2 2 2 2 2 2 2 3 3 3 4 6 9 8 Weapon 3 | . 2 4 3 4 5 5 2 1 1 1 1 1 1 1 1 1 . 1 . . 1 2 2 Tool/Special . | . . . . . . . . . . . . . . . . . . . . . . . . Unused Backups 36 | . 2 2 8 4 . 2 3 . . . . . . . . . . . . . 4 1 10 Power 4 | . 1 . 1 1 . . 1 . . . . . . . . . . . . . . . . Propulsion 11 | . 1 . 3 1 . . . . . . . . . . . . . . . . 3 . 3 Utility 14 | . . 1 2 2 . 1 . . . . . . . . . . . . . . 1 1 6 Weapon 4 | . . 1 1 . . 1 1 . . . . . . . . . . . . . . . . Tool/Special 3 | . . . 1 . . . 1 . . . . . . . . . . . . . . . 1 Average Slot Usage (%) 94 | . 93 98 98 99 99 92 85 100 97 93 92 86 80 91 94 93 88 88 89 94 89 75 68 Engine 7 | . 14 13 11 11 11 10 6 1 . . . . . . . . . . . . 1 . . Reactor 1 | . . . . . . . . . 1 6 6 6 6 5 5 5 5 5 6 11 5 1 . Treads 19 | . 23 27 32 32 32 30 6 . . . . . . . . . . . . . . . . Flight 9 | . . . . . . . 19 33 30 26 27 28 18 25 27 27 27 27 27 27 28 25 22 Device 8 | . 8 4 18 7 . 4 8 . 5 6 6 5 5 7 5 10 12 11 10 10 6 5 7 Storage 7 | . 14 14 11 11 11 10 1 . . . . . . . . . . . . . 4 5 4 Processor 6 | . . . . . . . 11 20 20 20 19 18 18 16 16 16 16 16 16 16 18 20 20 Hackware 3 | . . . . . . . 9 20 13 13 12 12 12 11 11 8 5 5 5 11 11 10 10 Protection 8 | . . 8 3 14 22 15 6 6 6 6 6 6 6 8 11 7 9 11 11 5 4 2 . Energy Cannon 1 | . . . . . . . 1 6 5 5 6 2 5 4 5 4 . . . . . . . Ballistic Gun 11 | . 27 27 21 20 20 2 . . . . . . . . . . . . . . . . . Slashing Weapon 2 | . . . . . . 4 6 6 6 6 6 6 6 5 5 5 5 5 5 5 5 5 5 Special Melee Weapon 1 | . . . . . . 6 3 . . . . . . . . . . . . . 1 . . Peak Build Rating 128 | 6 8 10 21 23 20 25 73 74 89 89 94 94 84 109 109 109 102 100 108 115 128 117 109 Average Rating 43 | 5 6 9 15 19 18 19 55 73 81 88 91 88 82 102 109 106 100 100 102 111 119 103 100 On Entrance 68 | . 6 7 10 21 19 19 24 73 74 89 89 94 78 83 109 109 101 100 100 108 111 114 95 Avg Prop Armor Cover (%) 2 | . 11 11 . . . . 9 . . . . . . . . . 1 1 1 . 1 13 12 Naked Turns 61 | . . . . . . 61 . . . . . . . . . . . . . . . . . Heaviest Build 47 | 14 20 26 47 47 42 43 45 27 28 24 24 24 24 37 35 35 31 29 37 35 44 38 26 Greatest Support 69 | 40 40 40 69 69 63 66 60 28 32 30 36 37 26 46 39 49 38 32 38 49 60 46 46 Greatest Overweight (x) 3 | 1 1 1 1 . . 1 2 . . . . . . . . . . . . . 3 3 1 Average Overweight (x) . | . . . . . . . . . . . . . . . . . . . . . . . . Largest Inventory Capacity 15 | 8 10 10 15 15 15 15 15 5 5 5 5 5 5 5 5 5 5 5 5 5 15 15 15 Average Capacity 11 | 7 9 10 14 15 15 14 8 5 5 5 5 5 5 5 5 5 5 5 5 5 13 15 13 Most Carried 15 | 4 10 10 15 15 15 15 15 5 5 5 5 5 5 5 5 5 5 4 5 5 15 15 15 Average Carried 10 | 1 7 9 12 14 15 13 7 4 4 5 4 4 4 4 5 4 4 4 4 5 12 14 13 Final Capacity 15 | 8 10 10 15 15 15 15 5 5 5 5 5 5 5 5 5 5 5 5 5 5 15 15 5 Final Carried 15 | 4 9 9 15 15 15 15 5 5 5 5 4 5 5 5 5 5 4 4 5 5 15 15 5 Scrap Suit Usage (%) 1 | . . . . . . 1 . . . . . . . . . . . . . . . . . Class Distribution -------------------- 24% | Scavenger-Mutant 24% | Hacker-Sprinter 22% | Mutant 18% | Commander-Mutant 6% | Sprinter Dominant Class ---------------- Mutant | -10/Materials Scavenger-Mutant | -10/Mines Scavenger-Mutant | -9/Materials Mutant | -9/Storage Commander-Mutant | -9/Recycling Commander-Mutant | -9/Scraptown Hacker-Scout | -6/Factory Hacker-Sprinter | -6/Waste Hacker-Sprinter | -6/Factory Hacker-Sprinter | -6/Lower Caves Hacker-Sprinter | -6/Lower Caves Hacker-Sprinter | -6/Data Miner Hacker-Sprinter | -5/Proximity Caves Hacker-Sprinter | -5/Factory Hacker-Sprinter | -5/Waste Hacker-Sprinter | -5/Factory Sprinter | -5/Upper Caves Sprinter | -5/Upper Caves Sprinter | -5/Zhirov Hacker-Sprinter | -4/Proximity Caves Hacker-Sprinter | -4/Factory Hacker-Mutant | -4/Waste Hacker-Mutant | -4/Factory Resources | -11 -10 -10 -9 -9 -9 -9 -6 -6 -6 -6 -6 -6 -5 -5 -5 -5 -5 -5 -5 -4 -4 -4 -4 ----------- Run | Yrd Mat Min Mat Sto Rec Scr Fac Was Fac Low Low Dat Pro Fac Was Fac Upp Upp Zhi Pro Fac Was Fac Matter Collected 5767 | 330 340 438 1426 958 73 38 440 . 97 210 183 . 111 260 . 136 50 . 50 20 580 . 27 Remotely . | . . . . . . . . . . . . . . . . . . . . . . . . Salvage Created 6725 | 159 440 415 1610 937 203 . 494 . 168 83 329 . 62 772 . 184 116 49 129 6 569 . . Parts 387 | 15 37 16 119 70 7 . 26 . 17 5 9 . 3 33 . 6 4 1 . . 19 . . Haulers Intercepted 19 | . 2 . 6 4 . . 1 . 1 . . . . 2 . 1 . . . . 2 . . Recyclers Shooed 1 | . . . 1 . . . . . . . . . . . . . . . . . . . . Parts Field Recycled . | . . . . . . . . . . . . . . . . . . . . . . . . Retrieved Matter . | . . . . . . . . . . . . . . . . . . . . . . . . Parts Self-Destructed 14 | . . . . . . . . . . 5 4 . 1 . . . 4 . . . . . . Prevented . | . . . . . . . . . . . . . . . . . . . . . . . . Parts Restored . | . . . . . . . . . . . . . . . . . . . . . . . . Kills | -11 -10 -10 -9 -9 -9 -9 -6 -6 -6 -6 -6 -6 -5 -5 -5 -5 -5 -5 -5 -4 -4 -4 -4 ------- Run | Yrd Mat Min Mat Sto Rec Scr Fac Was Fac Low Low Dat Pro Fac Was Fac Upp Upp Zhi Pro Fac Was Fac Combat Hostiles Destroyed 108 | . 13 8 35 16 2 . 3 . 5 4 3 . 2 11 . . 4 . . 1 1 . . Melee 3 | . . . . . . . . . . 1 1 . . . . . . . . . 1 . . Guns 55 | . 6 6 26 15 2 . . . . . . . . . . . . . . . . . . Cannons 1 | . . . . . . . 1 . . . . . . . . . . . . . . . . AOE 47 | . 7 2 9 1 . . 2 . 5 3 . . 2 11 . . 4 . . 1 . . . Classes Destroyed 16 | 2 5 2 3 1 . . 1 . . . . . 1 . . . . 1 . . . . . Worker 10 | . . . 1 4 . . 2 . . . . . . 1 . 1 . . . . 1 . . Builder 7 | . 1 1 3 1 . . . . . . . . . 1 . . . . . . . . . Tunneler 7 | 4 . . 2 . . . 1 . . . . . . . . . . . . . . . . Hauler 19 | . 2 . 6 4 . . 1 . 1 . . . . 2 . 1 . . . . 2 . . Recycler 9 | 1 . 1 . 1 1 . 2 . . . . . . 2 . . . . . . 1 . . Operator 6 | . 1 . 1 . . . 1 . 1 . . . . 2 . . . . . . . . . Drone 3 | . . . . . . . . . . . . . 2 . . . . . . 1 . . . Watcher 11 | . . . 2 1 . . 1 . . . . . . 1 . 3 . . . . 3 . . Swarmer 42 | . 6 . 10 4 . . 2 . 4 3 . . . 9 . . 4 . . . . . . Grunt 38 | . 7 6 14 8 . . . . . 1 . . . 2 . . . . . . . . . Brawler 2 | . . . 1 1 . . . . . . . . . . . . . . . . . . . Duelist 1 | . . . . 1 . . . . . . . . . . . . . . . . . . . Sentry 16 | . . 1 10 3 2 . . . . . . . . . . . . . . . . . . Programmer 2 | . . . . . . . 1 . 1 . . . . . . . . . . . . . . Packrat 1 | . . . . . . . . . . . . . . . . . 1 . . . . . . Samaritan 1 | . . . . . . . . . . . . . . . . . . 1 . . . . . Assembled 1 | . . 1 . . . . . . . . . . . . . . . . . . . . . Thug 1 | . . . . . . . . . . . 1 . . . . . . . . . . . . Savage 1 | . . . . . . . . . . . 1 . . . . . . . . . . . . Butcher 1 | . . . . . . . . . . . 1 . . . . . . . . . . . . Best Kill Streak 11 | 5 4 3 8 5 1 . 4 . 4 3 1 . 2 11 . 2 4 . . 1 2 . . Combat Bots Only 9 | . 3 2 7 4 1 . 2 . 4 3 1 . 2 9 . . 4 . . 1 1 . . Max Kills in Single Turn 4 | 1 3 3 3 1 1 . 3 . 1 1 1 . 1 3 . 1 4 1 . 1 1 . . Gunslinging . | . . . . . . . . . . . . . . . . . . . . . . . . Exploded 4 | . 2 2 2 1 . . 2 . 1 1 . . 1 2 . . 4 . . 1 . . . Melee 1 | . . . . . . . . . . 1 1 . . . . . . . . . 1 . . Uniques/NPCs Destroyed 1 | . . . . . . . . . . . . . . . . . . . . . 1 . . 6S-H0T (-4/Factory) Combat | -11 -10 -10 -9 -9 -9 -9 -6 -6 -6 -6 -6 -6 -5 -5 -5 -5 -5 -5 -5 -4 -4 -4 -4 -------- Run | Yrd Mat Min Mat Sto Rec Scr Fac Was Fac Low Low Dat Pro Fac Was Fac Upp Upp Zhi Pro Fac Was Fac Hostile Shots Fired 752 | . 47 33 187 83 9 . 88 . 45 13 6 6 . 47 . 19 1 7 . 4 97 3 57 Missed 275 | . 7 6 48 18 1 . 55 . 30 6 2 1 . 23 . 11 . 5 . 3 37 1 21 Deflected 3 | . . . . . . . . . . . . . . . . . . . . 1 2 . . Hits 477 | . 40 27 139 65 8 . 33 . 15 7 4 5 . 24 . 8 1 2 . 1 60 2 36 Melee 18 | . . 3 3 10 . . . . . . . . . . . . . . . . . 2 . Projectile 459 | . 40 24 136 55 8 . 33 . 15 7 4 5 . 24 . 8 1 2 . 1 60 . 36 Critical Strikes 20 | . . . . 4 1 . . . . 1 . . . . . 1 . . . . 11 2 . Actively Blocked 11 | . . . . . . . . . . . . . . . . . . . . . 11 . . Damage Taken 8358 | . 573 413 1729 1139 125 . 500 . 208 118 60 242 . 413 . 139 12 . . . 1877 96 714 Core 1780 | . 153 28 127 166 14 . 124 . 28 22 5 7 . 75 . 57 . . . . 574 12 388 Absorbed by Shields 16 | . . . . . . . . . 16 . . . . . . . . . . . . . . Redirected to Shielding 237 | . . . . 2 3 . . . . . . . . 71 . 20 . . . . 141 . . Regen/Repaired (Parts) 192 | . . . . 103 . . . . 33 . . . . . . . . . . . 56 . . Core Remaining (%) 62 | 100 . 27 . . . 23 . . . . . . 78 . . . . . . 86 . . . Volleys Fired 416 | 10 45 27 139 64 6 . 13 . 28 3 19 1 14 20 . 18 1 . . 1 7 . . Largest 2 | 2 2 2 2 2 2 . 1 . 1 1 1 1 1 1 . 1 1 . . 1 1 . . Hottest 105 | 40 50 53 46 46 46 . 85 . 105 30 35 35 35 35 . 35 30 . . 30 105 . . Shots Fired 695 | 20 84 54 267 132 13 . 13 . 25 5 19 1 15 20 . 18 1 . . 1 7 . . Gun 552 | 20 75 53 258 132 13 . . . . . . . . . . . . . . . 1 . . Cannon 96 | . . . . . . . 10 . 17 2 19 1 13 10 . 18 . . . . 6 . . Launcher 47 | . 9 1 9 . . . 3 . 8 3 . . 2 10 . . 1 . . 1 . . . Special . | . . . . . . . . . . . . . . . . . . . . . . . . Kinetic 552 | 20 75 53 258 132 13 . . . . . . . . . . . . . . . 1 . . Thermal 96 | . . . . . . . 10 . 17 2 19 1 13 10 . 18 . . . . 6 . . Explosive 47 | . 9 1 9 . . . 3 . 8 3 . . 2 10 . . 1 . . 1 . . . Electromagnetic . | . . . . . . . . . . . . . . . . . . . . . . . . Robot Hit Streak 20 | 3 10 15 20 18 12 . 1 . 4 5 4 . . . . . . . . . . . . Robot Miss Streak 3 | 2 3 2 3 2 1 . 1 . . 1 . . . 1 . . . . . . . . . Penetration Max . | . . . . . . . . . . . . . . . . . . . . . . . . Secondary Targets 2 | . . . 2 . . . . . . . . . . . . . . . . . . . . Max Gunslinging Chain 1 | . . . 1 . . . . . . . . . . . . . . . . . . . . Autonomous 5 | . . . . . . . . . . . . . . . . . . . . . 3 1 1 Shots Hit Robots 488 | 10 48 44 176 102 12 1 12 . 10 5 10 2 1 20 . 9 1 1 3 . 18 . 3 Core Hits 234 | 6 28 17 71 37 6 . 9 . 8 4 5 . 2 22 . 5 4 . 1 1 7 . 1 Critical Kills 4 | . . . 2 . . . . . . . 2 . . . . . . . . . . . . Critical Parts Destroyed 1 | . 1 . . . . . . . . . . . . . . . . . . . . . . Critical Strikes 7 | . 1 . 2 . . . . . 2 . 2 . . . . . . . . . . . . Meltdown 2 | . . . . . . . . . . . 2 . . . . . . . . . . . . Destroy 3 | . 1 . 2 . . . . . . . . . . . . . . . . . . . . Melee Attacks 304 | . . 9 . 7 . 1 43 . 43 4 13 6 8 57 . 29 1 12 4 . 62 . 5 Impact 13 | . . 9 . 4 . . . . . . . . . . . . . . . . . . . Slashing 284 | . . . . . . . 42 . 43 4 13 6 8 57 . 29 1 12 4 . 60 . 5 Piercing . | . . . . . . . . . . . . . . . . . . . . . . . . Sneak Attacks 37 | . . 1 . 3 . 1 6 . 4 2 . 1 . 5 . 4 1 1 . . 8 . . Combat Hostiles 1 | . . . . . . . . . . 1 . . . . . . . . . . . . . Follow-up Attacks . | . . . . . . . . . . . . . . . . . . . . . . . . Damage Inflicted 16544 | 151 1060 750 3414 1636 201 . 1357 . 959 431 495 147 221 2309 . 547 298 85 289 42 1841 83 228 Guns 5756 | 151 577 577 2668 1596 187 . . . . . . . . . . . . . . . . . . Cannons 579 | . . . . . . . 41 . . . 128 . . . . . . . . . 245 83 82 Explosions 3802 | . 469 111 642 . . . 519 . 441 182 . . 118 1071 . . 207 . . 42 . . . Melee 6225 | . . 52 . . . . 797 . 518 249 367 147 103 1238 . 547 91 85 289 . 1596 . 146 Ramming 182 | . 14 10 104 40 14 . . . . . . . . . . . . . . . . . . Kinetic 5756 | 151 577 577 2668 1596 187 . . . . . . . . . . . . . . . . . . Thermal 633 | . . . . . . . 284 . . . 128 . . 221 . . . . . . . . . Explosive 3334 | . 469 111 642 . . . 272 . 441 182 . . 118 850 . . 207 . . 42 . . . Electromagnetic 4 | . . . . . . . 4 . . . . . . . . . . . . . . . . Impact 52 | . . 52 . . . . . . . . . . . . . . . . . . . . . Slashing 6173 | . . . . . . . 797 . 518 249 367 147 103 1238 . 547 91 85 289 . 1596 . 146 Piercing . | . . . . . . . . . . . . . . . . . . . . . . . . Phasic 410 | . . . . . . . . . . . . . . . . . . . . . 245 83 82 Highest Corruption 10 | . . . 6 6 6 . . 9 10 10 10 10 10 . 10 10 1 . . . 3 10 10 Average Corruption 6 | . . . 5 6 6 . . 9 9 10 10 10 10 . 10 8 1 . . . 1 8 10 Corruption Purged 10 | . . . . . . . . . . . . . . . . 9 1 . . . . . . Corruption Blocked . | . . . . . . . . . . . . . . . . . . . . . . . . Effects 213 | . . . 67 37 22 . . 1 31 10 7 3 7 . 1 15 . . . . 5 3 4 Message Errors 51 | . . . 19 5 10 . . 1 8 3 1 . . . . 4 . . . . . . . Matter Fused 48 | . . . 17 6 2 . . . 7 3 2 2 3 . . 4 . . . . 1 . 1 Heat Flow Errors 22 | . . . 9 3 4 . . . 1 . 2 . 1 . . 2 . . . . . . . Energy Discharges 21 | . . . 1 6 2 . . . 5 . 1 . . . . 1 . . . . 3 . 2 Parts Rejected 5 | . . . . 1 1 . . . . . . . 1 . . . . . . . . 2 . Parts Fused 1 | . . . . 1 . . . . . . . . . . . . . . . . . . . Data Loss (minor) 25 | . . . 5 8 . . . . 3 2 1 . 1 . 1 1 . . . . 1 1 1 Data Loss (major) 14 | . . . 8 1 1 . . . 2 . . . . . . 2 . . . . . . . Misfires 12 | . . . 3 5 1 . . . . 2 . . 1 . . . . . . . . . . Alerts 3 | . . . 1 . 1 . . . . . . . . . . 1 . . . . . . . Misdirections 4 | . . . . . . . . . 3 . . 1 . . . . . . . . . . . Weapon Failures 7 | . . . 4 1 . . . . 2 . . . . . . . . . . . . . . Overload Shots 1 | . . . . . . . . . 1 . . . . . . . . . . . . . . Effects 1 | . . . . . . . . . 1 . . . . . . . . . . . . . . Short Circuit 1 | . . . . . . . . . 1 . . . . . . . . . . . . . . Overflow Damage 1875 | . 7 22 112 . . . 578 . 142 94 87 . 85 281 . 87 23 63 . . 294 . . Projectiles 49 | . . . . . . . 38 . . . . . . . . . . . . . 11 . . Explosions 347 | . 7 . 112 . . . 148 . . . . . 10 47 . . 23 . . . . . . Melee 1479 | . . 22 . . . . 392 . 142 94 87 . 75 234 . 87 . 63 . . 283 . . Knockbacks 2 | . . . . 2 . . . . . . . . . . . . . . . . . . . Impact 2 | . . . . 2 . . . . . . . . . . . . . . . . . . . Kinetic . | . . . . . . . . . . . . . . . . . . . . . . . . Secondary . | . . . . . . . . . . . . . . . . . . . . . . . . Self-Inflicted Damage 300 | . 140 . 54 . . . 82 . 24 . . . . . . . . . . . . . . Shots 10 | . 5 . 2 . . . 2 . 1 . . . . . . . . . . . . . . Rammed 28 | . 4 2 16 3 3 . . . . . . . . . . . . . . . . . . Targets Rammed 35 | . 4 2 19 7 3 . . . . . . . . . . . . . . . . . . Kicked . | . . . . . . . . . . . . . . . . . . . . . . . . Crushed 7 | . . . 3 4 . . . . . . . . . . . . . . . . . . . Highest Temperature 359 | . 8 18 204 257 249 . 63 36 252 32 161 21 221 111 100 359 156 156 44 25 201 . . Average Temperature 59 | . 3 6 77 96 117 . 23 13 22 14 75 6 91 27 43 88 66 61 23 17 75 . . Received Heat Transfer 1491 | . 183 183 570 258 45 . 120 . 6 . 9 . . 54 . 9 . . . . 54 . . Effects 6 | . . . . . . . . . . . . . . . . 6 . . . . . . . Shutdowns 3 | . . . . . . . . . . . . . . . . 3 . . . . . . . Energy Bleed 1 | . . . . . . . . . . . . . . . . 1 . . . . . . . Interference 2 | . . . . . . . . . . . . . . . . 2 . . . . . . . Siege Activations . | . . . . . . . . . . . . . . . . . . . . . . . . Martial Activations . | . . . . . . . . . . . . . . . . . . . . . . . . Shielding Activations . | . . . . . . . . . . . . . . . . . . . . . . . . Robots Disrupted 1 | . . . . . . . . . . . . . . . . . . . . . 1 . . Combat Hostiles . | . . . . . . . . . . . . . . . . . . . . . . . . Robots Corrupted . | . . . . . . . . . . . . . . . . . . . . . . . . Combat Hostiles . | . . . . . . . . . . . . . . . . . . . . . . . . Parts Fried . | . . . . . . . . . . . . . . . . . . . . . . . . Impact Corruptions 1 | . . 1 . . . . . . . . . . . . . . . . . . . . . Robots Melted 2 | . . . . . . . . . . . 2 . . . . . . . . . . . . Combat Hostiles 2 | . . . . . . . . . . . 2 . . . . . . . . . . . . Parts Melted 3 | . . . . . . . . . . . 3 . . . . . . . . . . . . Heat Transferred 500 | . . . . . . . 150 . . . 200 . . 150 . . . . . . . . . Parts Sabotaged . | . . . . . . . . . . . . . . . . . . . . . . . . Parts Stolen . | . . . . . . . . . . . . . . . . . . . . . . . . Parts Stripped 15 | . . . . . . . . . . . . . . . . . . . . . 15 . . Power Chain Reactions 1 | . . . . . . . 1 . . . . . . . . . . . . . . . . Alert | -11 -10 -10 -9 -9 -9 -9 -6 -6 -6 -6 -6 -6 -5 -5 -5 -5 -5 -5 -5 -4 -4 -4 -4 ------- Run | Yrd Mat Min Mat Sto Rec Scr Fac Was Fac Low Low Dat Pro Fac Was Fac Upp Upp Zhi Pro Fac Was Fac Maximum Alert Level 3 | . . . 2 2 1 . 2 . 1 . . . . 3 1 . . . . . . . . Low Security (%) 68 | 100 100 100 67 . 46 . 85 100 51 . . . . . . 100 . . . . 100 100 100 Level 1 18 | . . . 25 25 53 . 12 . 48 . . . . 32 100 . . . . . . . . Level 2 13 | . . . 7 74 . . 1 . . . . . . 65 . . . . . . . . . Level 3 . | . . . . . . . . . . . . . . 1 . . . . . . . . . Level 4 . | . . . . . . . . . . . . . . . . . . . . . . . . Level 5 . | . . . . . . . . . . . . . . . . . . . . . . . . High Security . | . . . . . . . . . . . . . . . . . . . . . . . . Max Security . | . . . . . . . . . . . . . . . . . . . . . . . . Peak Influence 742 | 15 178 59 544 624 254 . 474 165 304 . . . . 742 216 197 . . . . 63 18 15 Initial 300 | . . 25 . 229 219 . . 165 108 . . . . 300 216 144 . . . . . 18 . Average 166 | 4 66 8 160 465 193 . 103 160 214 . . . . 514 210 158 . . . . 32 4 1 Influence Increases 6614 | 25 516 200 1220 963 252 . 784 . 528 150 45 . 15 1068 . 246 90 . 5 5 479 . 23 Destroy 0b10 Robot/C 2280 | . 260 140 700 480 80 . 100 . 100 80 40 . . 220 . . 80 . . . . . . Destroy 0b10 Robot/NC 395 | 25 20 10 75 80 5 . 35 . 10 . 5 . 15 45 . 25 . . 5 5 35 . . Destroy Leader 530 | . 64 30 206 112 . . 34 . 22 10 . . . 26 . 8 10 . . . 8 . . Allied During Kill 101 | . . . . 80 18 . 3 . . . . . . . . . . . . . . . . Successful Hack 694 | . 23 . 59 42 29 . 78 . 146 . . . . 68 . 123 . . . . 120 . 6 Select Force Hacks 320 | . 60 . 60 60 120 . 20 . . . . . . . . . . . . . . . . Disable Machine 255 | . 30 . 15 45 . . 90 . 15 . . . . 30 . 15 . . . . 15 . . Destroy Structure 599 | . 59 5 45 19 . . 79 . 100 . . . . 154 . 60 . . . . 76 . 2 Advance Influence 300 | . . . . . . . . . . . . . . 300 . . . . . . . . . Partial Spotted 255 | . . . 15 . . . 45 . 90 . . . . . . 15 . . . . 90 . . Lose Combat Pursuer 885 | . . 15 45 45 . . 300 . 45 60 . . . 225 . . . . . . 135 . 15 Influence Decreases 6614 | 25 451 265 676 943 715 101 310 319 397 216 242 23 15 450 412 338 113 91 5 5 427 52 23 Entered New Map 1888 | . . 40 . 315 345 101 . 309 47 106 42 23 . . 402 62 43 19 . . . 34 . Time Decay 4085 | 25 441 215 626 478 350 . 250 10 350 110 160 . 15 270 10 246 70 72 5 5 349 10 18 Lost Part 261 | . 10 10 50 50 . . 20 . . . . . . 20 . 10 . . . . 78 8 5 Lost Ally 230 | . . . . 100 20 . 40 . . . 40 . . 10 . 20 . . . . . . . Purge Threat 150 | . . . . . . . . . . . . . . 150 . . . . . . . . . Squads Dispatched 67 | . 3 . 5 4 . . 8 . 12 . . . . 12 . 5 . . . . 17 . 1 Investigation 43 | . 3 . 3 2 . . 4 . 9 . . . . 6 . 3 . . . . 13 . . Extermination 13 | . . . . . . . 3 . 2 . . . . 2 . 2 . . . . 4 . . Reinforcement 8 | . . . 2 . . . . . 1 . . . . 4 . . . . . . . . 1 Assault 2 | . . . . 2 . . . . . . . . . . . . . . . . . . . Garrison 1 | . . . . . . . 1 . . . . . . . . . . . . . . . . Intercept . | . . . . . . . . . . . . . . . . . . . . . . . . Searches Triggered . | . . . . . . . . . . . . . . . . . . . . . . . . Unchained Authorized 2 | . . . . . . . . . . . . . . . . 1 . . . . 1 . . Construction Impeded 1 | . . . . . . . . . . . . . . 1 . . . . . . . . . Haulers Reinforced 2 | . . . . . . . . . . . . . . 2 . . . . . . . . . Active Scanning Responses . | . . . . . . . . . . . . . . . . . . . . . . . . Cargo Convoy Interrupts . | . . . . . . . . . . . . . . . . . . . . . . . . Stealth | -11 -10 -10 -9 -9 -9 -9 -6 -6 -6 -6 -6 -6 -5 -5 -5 -5 -5 -5 -5 -4 -4 -4 -4 --------- Run | Yrd Mat Min Mat Sto Rec Scr Fac Was Fac Low Low Dat Pro Fac Was Fac Upp Upp Zhi Pro Fac Was Fac Distress Signals 12 | . 1 . 2 2 . . 2 . 1 . . . . . . . . . . . 4 . . Communications Jammed . | . . . . . . . . . . . . . . . . . . . . . . . . Distress Signals . | . . . . . . . . . . . . . . . . . . . . . . . . Times Spotted 333 | . 24 11 64 34 3 . 31 5 20 7 10 4 2 28 6 16 3 5 . 5 47 6 2 Peak Tracking Total 11 | . 4 2 6 5 1 . 11 5 6 5 5 4 2 8 6 8 2 4 . 3 11 6 2 Tactical Retreats 44 | . . 1 3 1 . . 8 . 3 1 . . . 6 . 5 . 2 . 2 11 . 1 ECM-based Alert Blocks 40 | . . . . . . . . . . . . . . . . 7 . 5 . 5 23 . . ID Masks Used 1 | . . . . . . . . . . . . . . . . . . . . . 1 . . IFF Responses 12 | . . . . . . . . . . . . . . . . . . . . . 12 . . Traps | -11 -10 -10 -9 -9 -9 -9 -6 -6 -6 -6 -6 -6 -5 -5 -5 -5 -5 -5 -5 -4 -4 -4 -4 ------- Run | Yrd Mat Min Mat Sto Rec Scr Fac Was Fac Low Low Dat Pro Fac Was Fac Upp Upp Zhi Pro Fac Was Fac Traps Triggered 15 | . 1 . . 1 . . 2 . 2 . . . . 2 . 1 . . . . 6 . . Indirectly 1 | . . . . . . . 1 . . . . . . . . . . . . . . . . Trap Hack Attempts 27 | . . . . 27 . . . . . . . . . . . . . . . . . . . Triggered . | . . . . . . . . . . . . . . . . . . . . . . . . Disarmed 1 | . . . . 1 . . . . . . . . . . . . . . . . . . . Reprogrammed 4 | . . . . 4 . . . . . . . . . . . . . . . . . . . Reused . | . . . . . . . . . . . . . . . . . . . . . . . . Traps Extracted 4 | . . . . 4 . . . . . . . . . . . . . . . . . . . Installed . | . . . . . . . . . . . . . . . . . . . . . . . . Triggered . | . . . . . . . . . . . . . . . . . . . . . . . . Most Traps Carried 4 | . . . . 4 4 4 3 3 3 3 3 3 3 3 3 3 3 3 3 3 3 3 3 Machines | -11 -10 -10 -9 -9 -9 -9 -6 -6 -6 -6 -6 -6 -5 -5 -5 -5 -5 -5 -5 -4 -4 -4 -4 ---------- Run | Yrd Mat Min Mat Sto Rec Scr Fac Was Fac Low Low Dat Pro Fac Was Fac Upp Upp Zhi Pro Fac Was Fac Machines Disabled 19 | . 2 1 1 3 . . 6 . 1 . . 1 . 2 . 1 . . . . 1 . . Max in Single Turn 4 | . 1 1 1 1 . . 4 . 1 . . 1 . 1 . 1 . . . . 1 . . Garrison Access 7 | . . . . . . . . . 3 . . . . 2 . 1 . . . . 1 . . Machines Repaired . | . . . . . . . . . . . . . . . . . . . . . . . . Machines Dismantled . | . . . . . . . . . . . . . . . . . . . . . . . . Machines Sabotaged . | . . . . . . . . . . . . . . . . . . . . . . . . Overloaded Fab Kills . | . . . . . . . . . . . . . . . . . . . . . . . . Hacking | -11 -10 -10 -9 -9 -9 -9 -6 -6 -6 -6 -6 -6 -5 -5 -5 -5 -5 -5 -5 -4 -4 -4 -4 --------- Run | Yrd Mat Min Mat Sto Rec Scr Fac Was Fac Low Low Dat Pro Fac Was Fac Upp Upp Zhi Pro Fac Was Fac Machines Accessed 170 | . 10 . 14 15 10 4 17 . 26 . 1 3 1 19 . 16 . . 4 . 29 . 1 Terminals 95 | . 8 . 10 12 6 . 12 . 11 . . . 1 10 . 10 . . . . 14 . 1 Fabricators 13 | . . . . . . . 2 . 2 . . . . 3 . 2 . . . . 4 . . Repair Stations 4 | . . . . 1 . . . . 2 . . . . . . . . . . . 1 . . Recycling Units 29 | . 2 . 2 2 4 . 2 . 6 . . . . 3 . 2 . . . . 6 . . Scanalyzers 7 | . . . 2 . . . . . 2 . . . . 1 . 1 . . . . 1 . . Garrison Access 10 | . . . . . . . 1 . 3 . . . . 2 . 1 . . . . 3 . . Total Hacks 549 | . 27 . 46 41 34 9 37 . 84 . 4 20 1 69 . 50 . . 16 . 107 . 4 Successful 309 | . 13 . 27 25 15 9 15 . 41 . 4 20 1 28 . 31 . . 16 . 61 . 3 Failed 237 | . 14 . 18 16 18 . 22 . 43 . . . . 41 . 19 . . . . 45 . 1 Catastrophic 38 | . 1 . 1 4 1 . 7 . 7 . . . . 7 . 5 . . . . 5 . . Database Lockouts 3 | . . . 1 . 1 . . . . . . . . . . . . . . . 1 . . Manual 257 | . 22 . 31 22 16 . 14 . 41 . . . . 32 . 26 . . . . 50 . 3 Terminals 321 | . 22 . 33 31 22 . 30 . 38 . . . 1 41 . 35 . . . . 64 . 4 Fabricators 42 | . . . . . . . 3 . 12 . . . . 9 . 5 . . . . 13 . . Repair Stations 15 | . . . . 4 . . . . 7 . . . . . . . . . . . 4 . . Recycling Units 60 | . 5 . 5 6 12 . 2 . 11 . . . . 10 . 3 . . . . 6 . . Scanalyzers 29 | . . . 8 . . . . . 7 . . . . 2 . 3 . . . . 9 . . Garrison Access 33 | . . . . . . . 2 . 9 . . . . 7 . 4 . . . . 11 . . Terminal Hacks 133 | . 2 . 8 9 5 9 7 . 9 . 4 20 1 10 . 9 . . 16 . 22 . 2 Record 23 | . . . . . . 7 . . . . 4 6 1 . . . . . 5 . . . . Part Schematic 18 | . . . . . 3 . 2 . . . . 8 . . . . . . 3 . 2 . . Robot Schematic 3 | . . . . . . . . . . . . 3 . . . . . . . . . . . Robot Analysis 10 | . 2 . 3 . . . . . . . . . . . . 1 . . 4 . . . . Prototype ID Bank 19 | . . . 1 5 1 . 1 . 1 . . 3 . 1 . . . . 4 . 2 . . Open Door 4 | . . . . 3 . 1 . . . . . . . . . . . . . . . . . Level Access Points 1 | . . . . . . . . . . . . . . . . . . . . . 1 . . Branch Access Points 6 | . . . 1 . . . 1 . 1 . . . . 1 . 1 . . . . 1 . . Terminal Index 5 | . . . 1 . 1 . . . . . . . . . . 1 . . . . 1 . 1 Fabricator Index 3 | . . . . . . . . . 2 . . . . . . 1 . . . . . . . Recycling Unit Index 2 | . . . . . . . . . . . . . . . . 1 . . . . 1 . . Scanalyzer Index 3 | . . . . . . . . . 1 . . . . 1 . . . . . . 1 . . Alert Level 5 | . . . 1 . . . . . . . . . . 1 . . . . . . 3 . . Unreport Threat 1 | . . . . . . . . . . . . . . 1 . . . . . . . . . Locate Traps 4 | . . . . . . . . . . . . . . . . 1 . . . . 3 . . Recall Investigation 4 | . . . . . . . . . . . . . . 1 . . . . . . 3 . . Recall Extermination 5 | . . . . . . . 1 . 1 . . . . 2 . . . . . . 1 . . Recall Reinforcements 4 | . . . . . . . 1 . 1 . . . . 1 . . . . . . 1 . . Hauler Manifests 7 | . . . 1 1 . . . . 1 . . . . 1 . 1 . . . . 1 . 1 Registered Components 2 | . . . . . . . . . 1 . . . . . . 1 . . . . . . . Registered Prototypes 3 | . . . . . . . 1 . . . . . . . . 1 . . . . 1 . . Proto ID Catalog 1 | . . . . . . 1 . . . . . . . . . . . . . . . . . Fabricator Hacks 18 | . . . . . . . 1 . 4 . . . . 3 . 3 . . . . 7 . . Network Status 3 | . . . . . . . 1 . 1 . . . . . . . . . . . 1 . . Load Schematic 10 | . . . . . . . . . 2 . . . . 2 . 2 . . . . 4 . . Build 5 | . . . . . . . . . 1 . . . . 1 . 1 . . . . 2 . . Repair Station Hacks 7 | . . . . 3 . . . . 4 . . . . . . . . . . . . . . Scan Component 4 | . . . . 2 . . . . 2 . . . . . . . . . . . . . . Repair 3 | . . . . 1 . . . . 2 . . . . . . . . . . . . . . Recycling Unit Hacks 7 | . 1 . 1 2 3 . . . . . . . . . . . . . . . . . . Retrieve Components 7 | . 1 . 1 2 3 . . . . . . . . . . . . . . . . . . Scanalyzer 24 | . . . 6 . . . . . 5 . . . . 2 . 3 . . . . 8 . . Insert Component 9 | . . . 2 . . . . . 2 . . . . . . 1 . . . . 4 . . Analyze 8 | . . . 1 . . . . . 2 . . . . . . 2 . . . . 3 . . Retrieve Study 7 | . . . 3 . . . . . 1 . . . . 2 . . . . . . 1 . . Garrison Access Hacks 7 | . . . . . . . . . 3 . . . . 2 . 1 . . . . 1 . . Seal Access 7 | . . . . . . . . . 3 . . . . 2 . 1 . . . . 1 . . Unauthorized Hacks 113 | . 10 . 12 11 7 . 7 . 16 . . . . 11 . 15 . . . . 23 . 1 Terminals 69 | . 8 . 10 9 3 . 4 . 6 . . . . 5 . 11 . . . . 12 . 1 Track 5 | . . . . 2 . . . . . . . . . 1 . . . . . . 2 . . Assimilate 7 | . 1 . . . . . 2 . 1 . . . . 1 . 2 . . . . . . . Botnet 24 | . 1 . 3 2 2 . 2 . 3 . . . . 3 . 3 . . . . 4 . 1 Operators 6 | . 1 . 2 . . . . . 1 . . . . . . 1 . . . . 1 . . Skim 27 | . 5 . 5 5 1 . . . 1 . . . . . . 5 . . . . 5 . . Fabricators 14 | . . . . . . . 1 . 4 . . . . 3 . 2 . . . . 4 . . Prioritize 2 | . . . . . . . . . 1 . . . . 1 . . . . . . . . . Haulers 4 | . . . . . . . . . 1 . . . . 1 . 1 . . . . 1 . . Download 1 | . . . . . . . 1 . . . . . . . . . . . . . . . . Recompile 7 | . . . . . . . . . 2 . . . . 1 . 1 . . . . 3 . . Repair Stations 2 | . . . . . . . . . 1 . . . . . . . . . . . 1 . . Mechanics 1 | . . . . . . . . . 1 . . . . . . . . . . . . . . Patch 1 | . . . . . . . . . . . . . . . . . . . . . 1 . . Recycling Units 28 | . 2 . 2 2 4 . 2 . 5 . . . . 3 . 2 . . . . 6 . . Tunnel 10 | . 2 . 2 2 4 . . . . . . . . . . . . . . . . . . Fedlink 18 | . . . . . . . 2 . 5 . . . . 3 . 2 . . . . 6 . . Scanalyzers . | . . . . . . . . . . . . . . . . . . . . . . . . Garrison Access . | . . . . . . . . . . . . . . . . . . . . . . . . Data Cores Recovered 6 | . 1 . . 2 . . . . 1 . . . . 2 . . . . . . . . . Used 2 | . . . . 1 . . . . 1 . . . . . . . . . . . . . . Hacking Detections 124 | . 9 . 12 12 9 . 14 . 18 . . . 1 15 . 13 . . . . 20 . 1 Full Trace Events 14 | . . . 2 . 4 . 1 . 2 . . . . 2 . . . . . . 3 . . Feedback Events 2 | . . . 1 . . . . . 1 . . . . . . . . . . . . . . Corruption 2 | . . . 1 . . . . . 1 . . . . . . . . . . . . . . Feedback Blocked . | . . . . . . . . . . . . . . . . . . . . . . . . Robot Schematics Acquired 3 | . . . . . . . . . . . . 3 . . . . . . . . . . . Robots Built . | . . . . . . . . . . . . . . . . . . . . . . . . Authchips . | . . . . . . . . . . . . . . . . . . . . . . . . Time . | . . . . . . . . . . . . . . . . . . . . . . . . Total Robot Build Rating . | . . . . . . . . . . . . . . . . . . . . . . . . Part Schematics Acquired 26 | . . . 1 . 3 . 3 . 2 . . 8 . . . 1 . . 3 . 5 . . Parts Built 5 | . . . . . . . . . 1 . . . . . . 1 . . . . 3 . . Authchips 5 | . . . . . . . . . 1 . . . . 1 . 1 . . . . 2 . . Time 360 | . . . . . . . . . 58 . . . . 93 . 67 . . . . 142 . . Total Part Build Rating 31 | . . . . . . . . . 7 . . . . . . 4 . . . . 20 . . Part Studies Acquired 7 | . . . 3 . . . . . 1 . . . . 2 . . . . . . 1 . . Parts Repaired 3 | . . . . 1 . . . . 2 . . . . . . . . . . . . . . Time 128 | . . . . 16 . . . . 112 . . . . . . . . . . . . . . Parts Recycled . | . . . . . . . . . . . . . . . . . . . . . . . . Recycled Matter . | . . . . . . . . . . . . . . . . . . . . . . . . Retrieved Matter . | . . . . . . . . . . . . . . . . . . . . . . . . Retrieved Components 37 | . 5 . 10 10 12 . . . . . . . . . . . . . . . . . . Parts Scanalyzed 7 | . . . 1 . . . . . 2 . . . . . . 1 . . . . 3 . . Part Schematics Acquired 7 | . . . 1 . . . . . 2 . . . . . . 1 . . . . 3 . . Parts Damaged 1 | . . . 1 . . . . . . . . . . . . . . . . . . . . Bothacking | -11 -10 -10 -9 -9 -9 -9 -6 -6 -6 -6 -6 -6 -5 -5 -5 -5 -5 -5 -5 -4 -4 -4 -4 ------------ Run | Yrd Mat Min Mat Sto Rec Scr Fac Was Fac Low Low Dat Pro Fac Was Fac Upp Upp Zhi Pro Fac Was Fac Used RIF Installer . | . . . . . . . . . . . . . . . . . . . . . . . . Robots Hacked 3 | . . . . 1 . 1 . . . . . . . . . . . . . . 1 . . Non-combat 2 | . . . . 1 . . . . . . . . . . . . . . . . 1 . . Combat 1 | . . . . . . 1 . . . . . . . . . . . . . . . . . Robot Hacks Applied 3 | . . . . 1 . 1 . . . . . . . . . . . . . . 1 . . parse_system 2 | . . . . 1 . 1 . . . . . . . . . . . . . . . . . find_chute 1 | . . . . . . . . . . . . . . . . . . . . . 1 . . Relay Couplers Released . | . . . . . . . . . . . . . . . . . . . . . . . . Fabnet Peak Effective % . | . . . . . . . . . . . . . . . . . . . . . . . . Robots Rewired 2 | . . . . . . . . . . . 2 . . . . . . . . . . . . Allies Hacked . | . . . . . . . . . . . . . . . . . . . . . . . . Hacks Repelled . | . . . . . . . . . . . . . . . . . . . . . . . . Allies | -11 -10 -10 -9 -9 -9 -9 -6 -6 -6 -6 -6 -6 -5 -5 -5 -5 -5 -5 -5 -4 -4 -4 -4 -------- Run | Yrd Mat Min Mat Sto Rec Scr Fac Was Fac Low Low Dat Pro Fac Was Fac Upp Upp Zhi Pro Fac Was Fac Total Allies 19 | . . . . 12 . . 1 . 1 . 2 . . 1 . 2 . . . . . . . Largest Group 10 | . . . . 10 5 4 4 . 1 . 2 . . 1 . 2 . . . . . . . Highest-Rated Group 88 | . . . . 88 48 40 40 . 10 . 62 . . 9 . 36 . . . . . . . Highest-Rated Ally 31 | . . . . 31 16 16 16 . 10 . 31 . . 9 . 26 . . . . . . . Total Orders 1 | . . . . . . . . . . . . . . . . 1 . . . . . . . STAY 1 | . . . . . . . . . . . . . . . . 1 . . . . . . . Ally Attacks 104 | . . . . 51 8 . 33 . . . 12 . . . . . . . . . . . . Total Damage 1431 | . . . . 930 88 . 289 . . . 124 . . . . . . . . . . . . Kills 20 | . . . . 14 2 . 2 . . . 2 . . . . . . . . . . . . Allies Corrupted . | . . . . . . . . . . . . . . . . . . . . . . . . Allies Melted . | . . . . . . . . . . . . . . . . . . . . . . . . Intel | -11 -10 -10 -9 -9 -9 -9 -6 -6 -6 -6 -6 -6 -5 -5 -5 -5 -5 -5 -5 -4 -4 -4 -4 ------- Run | Yrd Mat Min Mat Sto Rec Scr Fac Was Fac Low Low Dat Pro Fac Was Fac Upp Upp Zhi Pro Fac Was Fac Active Infowar (turns) 9925 | . 758 437 2045 597 . 830 814 35 784 231 318 37 215 586 39 526 153 349 58 114 931 54 14 Sensors 4721 | . . . . . . . 411 . 705 231 318 37 215 586 39 526 149 349 58 114 915 54 14 Structural 2122 | . . . 1921 201 . . . . . . . . . . . . . . . . . . . Seismic 4908 | . 758 437 2032 596 . 830 255 . . . . . . . . . . . . . . . . Machine Analysis 623 | . . . . . . . 363 35 225 . . . . . . . . . . . . . . ECM 1199 | . . . . . . . . . . . . . . . . 299 153 349 42 109 247 . . ID Mask 29 | . . . . . . . . . . . . . . . . . . . . . 29 . . Robot Analysis Total 10 | . 2 . 3 . . . . . . . . . . . . 1 . . 4 . . . . Derelict Logs Recovered 6 | . . 1 . . . . . . . 1 2 . 1 . . . 1 . . . . . . Drone Launches . | . . . . . . . . . . . . . . . . . . . . . . . . Drone Recoveries . | . . . . . . . . . . . . . . . . . . . . . . . . Exploration | -11 -10 -10 -9 -9 -9 -9 -6 -6 -6 -6 -6 -6 -5 -5 -5 -5 -5 -5 -5 -4 -4 -4 -4 ------------- Run | Yrd Mat Min Mat Sto Rec Scr Fac Was Fac Low Low Dat Pro Fac Was Fac Upp Upp Zhi Pro Fac Was Fac Turns Passed 15383 | 109 1249 1587 2659 1226 785 2252 814 35 797 231 320 45 225 586 39 526 153 349 58 114 1014 79 131 Spaces Moved 18316 | 45 642 736 1257 529 459 1484 1434 122 1758 783 858 97 503 1237 141 1299 340 849 164 422 2859 125 173 Core 235 | 5 . . . . . 230 . . . . . . . . . . . . . . . . . Treads 4863 | 40 474 712 1257 529 459 1254 138 . . . . . . . . . . . . . . . . Legs . | . . . . . . . . . . . . . . . . . . . . . . . . Wheels 192 | . 168 24 . . . . . . . . . . . . . . . . . . . . . Hover 1 | . . . . . . . . . . . . . . . . . . . . . 1 . . Flight 13025 | . . . . . . . 1296 122 1758 783 858 97 503 1237 141 1299 340 849 164 422 2858 125 173 Fastest Speed 5 | 50 95 95 160 160 160 50 24 24 24 26 24 21 32 15 25 11 24 27 24 11 5 22 19 Average Speed 62 | 148 142 157 160 160 160 143 39 24 25 26 24 23 32 26 25 24 26 27 25 23 21 45 46 Slowest Speed 280 | 160 160 160 240 160 160 160 190 24 27 26 26 28 32 32 25 25 27 27 27 24 190 280 120 Overloaded Moves 127 | . . . . . . . . . . . . 13 . 7 . 19 . . . 4 67 . 17 Propulsion Burnouts . | . . . . . . . . . . . . . . . . . . . . . . . . Robots Hopped 58 | . . . . . . . 7 . 7 . . 1 . 4 . 13 . . . 1 19 4 2 Potential Cave-ins . | . . . . . . . . . . . . . . . . . . . . . . . . Cave-ins Triggered . | . . . . . . . . . . . . . . . . . . . . . . . . Exploration Rate (%) 67 | 4 98 97 96 89 94 82 42 96 51 88 81 76 73 36 90 41 48 78 60 58 58 75 5 Regions Visited 23 Branch Regions 12 Pre-discovered Areas 23 | . 2 1 3 4 4 . 1 . . . 2 1 . . . . . . 3 . 2 . . Known Exits Taken 14 | . . 1 1 1 1 . . . 1 1 1 1 1 . . 1 1 1 1 1 . . . Unknown Exits Taken 3 | 1 1 . . . . 1 . . . . . . . . . . . . . . . . . Scrap Searched 17 | . . 1 . . . 1 . . . 1 5 . 2 . . . 1 4 . 2 . . . Spaces Dug 294 | . . 1 7 . . . 38 . 66 19 16 1 25 33 . 23 8 9 . 8 39 . 1 Terrain Destroyed 622 | . 54 5 49 . . . 115 . 119 31 20 1 36 90 . 36 8 9 . 8 40 . 1 Melee 157 | . . 1 . . . . 23 . 27 . 5 1 7 31 . 18 . 9 . . 34 . 1 Projectile 87 | . . . . . . . 8 . 17 2 15 . 12 9 . 18 . . . . 6 . . AOE 378 | . 54 4 49 . . . 84 . 75 29 . . 17 50 . . 8 . . 8 . . . Terrain Rammed . | . . . . . . . . . . . . . . . . . . . . . . . . Walls Destroyed . | . . . . . . . . . . . . . . . . . . . . . . . . Machines Disabled . | . . . . . . . . . . . . . . . . . . . . . . . . Actions | -11 -10 -10 -9 -9 -9 -9 -6 -6 -6 -6 -6 -6 -5 -5 -5 -5 -5 -5 -5 -4 -4 -4 -4 --------- Run | Yrd Mat Min Mat Sto Rec Scr Fac Was Fac Low Low Dat Pro Fac Was Fac Upp Upp Zhi Pro Fac Was Fac Total 21037 | 64 885 1088 1613 763 496 1612 1596 126 2011 799 926 109 538 1382 143 1431 400 950 174 432 3145 140 214 Wait 1354 | . 165 286 78 69 18 62 52 2 137 8 32 4 5 41 3 85 54 90 . 10 108 11 34 Move 18186 | 44 641 735 1256 528 458 1483 1420 121 1744 782 857 94 502 1229 140 1273 339 848 163 419 2822 119 169 Hop 52 | . . . . . . . 7 . 6 . . 1 . 4 . 12 . . . 1 18 1 2 Pick Up 140 | 3 8 4 29 11 . 25 11 1 4 . . . 2 3 . 3 . . 2 . 32 2 . Fast Attach 74 | 6 1 1 3 3 1 9 11 . 6 . 1 . 1 7 . 3 . . 1 . 12 5 3 Attach 58 | . 4 1 9 5 . 4 4 . 1 . 1 1 1 3 . 1 2 . 1 . 20 . . Detach 26 | . 3 1 2 . . 2 4 . 3 . . 2 . . . 1 1 . . . 7 . . Swap 204 | 1 9 16 53 32 6 3 11 1 16 2 1 . 4 10 . 4 2 . 3 1 28 1 . Drop 137 | . 5 6 25 10 4 23 20 1 11 . . . 1 8 . 2 . . 1 . 18 1 1 Fire 416 | 10 45 27 139 64 6 . 13 . 28 3 19 1 14 20 . 18 1 . . 1 7 . . Melee 303 | . . 9 . 7 . 1 43 . 43 4 13 6 8 57 . 29 1 12 3 . 62 . 5 Ram . | . . . . . . . . . . . . . . . . . . . . . . . . Kick . | . . . . . . . . . . . . . . . . . . . . . . . . Crush 35 | . 4 2 19 7 3 . . . . . . . . . . . . . . . . . . Escape Stasis 23 | . . . . . . . . . 12 . . . . . . . . . . . 11 . . Rewire 2 | . . . . . . . . . . . 2 . . . . . . . . . . . . Trap 27 | . . . . 27 . . . . . . . . . . . . . . . . . . . Miscellaneous . | . . . . . . . . . . . . . . . . . . . . . . . . Route ------- -11/Scrapyard -10/Materials (discovered 6 exits: *Mat x3 / [*Min x2] / Sub) -10/Mines (discovered 4 exits: *Mat x2 / *Exi / *Sub) -9/Materials (discovered 7 exits: *Mat x3 / *Min x2 / *Sto x2) -9/Storage (discovered 2 exits: *Mat / *Rec) -9/Recycling (discovered 2 exits: *Fac / *Scr) -9/Scraptown (discovered 2 exits: *Fac x2) -6/Factory (discovered 4 exits: *Fac x2 / *Low x2) -6/Waste -6/Factory (discovered 3 exits: *Fac / *Low x2) -6/Lower Caves (discovered 2 exits: *Low / *Dat) -6/Lower Caves (discovered 2 exits: *Fac / *Dat) -6/Data Miner -5/Proximity Caves -5/Factory (discovered 3 exits: Fac / *Upp x2) -5/Waste -5/Factory (discovered 4 exits: *Fac x2 / *Upp x2) -5/Upper Caves -5/Upper Caves -5/Zhirov -4/Proximity Caves -4/Factory (discovered 9 exits: *Res x4 / Upp x2 / *Ext x2 / Arm) -4/Waste -4/Factory (discovered 4 exits: Res x3 / Arm) History --------- Turn | Location | Event 9 | -11/Scrapyard | Discovered new exit (range 15) 110 | -11/Scrapyard | Entered Materials 305 | -10/Materials | Build established: Mutant 433 | -10/Materials | Discovered new exit (range 14) 620 | -10/Materials | Discovered new exit (range 5) 811 | -10/Materials | Discovered new exit (range 15) 944 | -10/Materials | Core integrity fell below 50% 986 | -10/Materials | Identified exit to Materials 1066 | -10/Materials | Discovered new exit (range 10) 1109 | -10/Materials | Learned location of 2 exits from Mines 1153 | -10/Materials | Identified exit to Subcaves 1153 | -10/Materials | Learned location of 2 exits from Materials 1186 | -10/Materials | Learned location of 1 exit from Storage 1231 | -10/Materials | Learned location of 1 exit from Storage 1359 | -10/Materials | Entered Mines 1361 | -10/Mines | Identified exit to Exiles 1462 | -10/Mines | Joined a pair of Derelicts in attacking an 0b10 outpost 1574 | -10/Mines | Excavation squad dispatched 1574 | -10/Mines | A large section of the Mines collapsed 1861 | -10/Mines | Deemed a non-threat by the Exiles lab entrance 2198 | -10/Mines | Found a hidden stash of uninstalled traps 2316 | -10/Mines | Learned location of Storage (-9) 2524 | -10/Mines | Learned Materials garrison access intel 2693 | -10/Mines | Build established: Scavenger-Mutant 2946 | -10/Mines | Entered Materials 2946 | -9/Materials | Evolved 2 slots: Propulsion x1, Utility x1 2947 | -9/Materials | Identified exit to Materials 2947 | -9/Materials | Identified exit to Storage 3101 | -9/Materials | Lost 3 parts (2u1w) 3331 | -9/Materials | Discovered exit to Storage (range 7) 4233 | -9/Materials | Discovered new exit (range 11) 4602 | -9/Materials | Discovered exit to Materials (range 15) 4738 | -9/Materials | Discovered new exit (range 10) 4752 | -9/Materials | Destroyed 7 combat bots 4788 | -9/Materials | Central database locked down 4839 | -9/Materials | Learned location of 1 exit from Recycling 4908 | -9/Materials | Learned Storage garrison access intel 4919 | -9/Materials | Identified exit to Mines 4969 | -9/Materials | Learned 4 Recycling zone layouts 5011 | -9/Materials | Discovered exit to Materials (range 4) 5019 | -9/Materials | Learned 2 Storage zone layouts 5059 | -9/Materials | Learned Storage security intel 5065 | -9/Materials | Build established: Mutant 5180 | -9/Materials | Learned location of 3 exits from Materials 5605 | -9/Materials | Entered Storage 5607 | -9/Storage | Identified exit to Recycling 5610 | -9/Storage | Loaded intel: 1 garrison access location 5792 | -9/Storage | Met a pair of Derelict thieves 5932 | -9/Storage | Core integrity fell below 50% 5987 | -9/Storage | Lost 5 parts (2n1u2w) 6244 | -9/Storage | Learned 2 Materials zone layouts 6311 | -9/Storage | Learned 2 Storage zone layouts 6330 | -9/Storage | Learned location of 1 exit from Recycling 6340 | -9/Storage | Learned Materials garrison access intel 6341 | -9/Storage | Learned 2 Storage zone layouts 6355 | -9/Storage | Learned 4 Recycling zone layouts 6442 | -9/Storage | Assisted by bots powering up and referring to "LRC-V3" 6676 | -9/Storage | Lost 4 allies 6741 | -9/Storage | Build established: Commander-Mutant 6763 | -9/Storage | Repaired Med. Armor Plating 6822 | -9/Storage | Used back door to open Recycling access 6831 | -9/Storage | Entered Recycling 6831 | -9/Recycling | Accompanied by 5 allies 6832 | -9/Recycling | Identified exit to Factory 6832 | -9/Recycling | Identified exit to Scraptown 7558 | -9/Recycling | Scanned before Scraplab entrance 7584 | -9/Recycling | Entered Scraplab 7616 | -9/Recycling | Entered Scraptown 7616 | -9/Scraptown | Accompanied by 4 allies 7616 | -9/Scraptown | System corruption cleaned by C-Scrubber 7842 | -9/Scraptown | Visited Awakened 7879 | -9/Scraptown | Visited The Evicted 7911 | -9/Scraptown | Visited Red Mages 7924 | -9/Scraptown | Visited Spacefarers 7944 | -9/Scraptown | Visited Symbiants 7970 | -9/Scraptown | Visited Shadow of the Wyrm 8175 | -9/Scraptown | Discovered new exit (range 13) 8306 | -9/Scraptown | Visited UFD Registry 8306 | -9/Scraptown | Registered with UFD as "Metalever" 8343 | -9/Scraptown | Visited A0-MCA Data Center 8352 | -9/Scraptown | Given a B rating by A0-MCA 8383 | -9/Scraptown | Visited Curators Association 8440 | -9/Scraptown | Visited Science Guys 8580 | -9/Scraptown | Visited LU-1G1's Boring Crew 8600 | -9/Scraptown | Visited Scrap Suit Storage 8624 | -9/Scraptown | Found Unknown Device 8624 | -9/Scraptown | Identified Scrap Suit 8661 | -9/Scraptown | Visited Sword Containment 8675 | -9/Scraptown | Visited Infowarlord's Domain 8704 | -9/Scraptown | Visited Botcube Research 8733 | -9/Scraptown | Visited Junk Repository 8762 | -9/Scraptown | Visited Derelict Rescue Squad 8909 | -9/Scraptown | Found A0-MCA's Component Scanner 8955 | -9/Scraptown | Found Prototype Slashing Weapon 8955 | -9/Scraptown | Identified Companion Sword 9078 | -9/Scraptown | Found Exp. Signal Interpreter 9537 | -9/Scraptown | Build established: Scavenger-Mutant 9574 | -9/Scraptown | Found DRS Beacon 9773 | -9/Scraptown | Met Optimus 9773 | -9/Scraptown | Accepted into 0bPrime 9860 | -9/Scraptown | Discovered new exit (range 3) 9868 | -9/Scraptown | Entered Factory 9868 | -6/Factory | Accompanied by 4 allies 9868 | -6/Factory | Evolved 6 slots: Propulsion x2, Utility x4 10009 | -6/Factory | Discovered new exit (range 15) 10010 | -6/Factory | Garrison activated, responded to threat 10174 | -6/Factory | Identified exit to Factory 10329 | -6/Factory | Discovered new exit (range 7) 10331 | -6/Factory | Identified exit to Lower Caves 10368 | -6/Factory | Loaded intel: 8 recycling unit locations 10431 | -6/Factory | Learned location of Protoforge (-2) 10432 | -6/Factory | Spotted B-75 Beast 10545 | -6/Factory | Discovered exit to Factory (range 13) 10682 | -6/Factory | Sucked down chute 10682 | -6/Factory | Entered Waste 10686 | -6/Waste | Spotted C-40 Crusher 10697 | -6/Waste | EMP discharged 10698 | -6/Waste | Spotted C-40 Crusher 10699 | -6/Waste | Spotted C-40 Crusher 10700 | -6/Waste | Spotted C-40 Crusher 10708 | -6/Waste | Spotted C-40 Crusher 10712 | -6/Waste | Discovered new exit (range 14) 10716 | -6/Waste | Identified exit to Factory 10717 | -6/Waste | Entered Factory 10726 | -6/Factory | Discovered exit to Factory (range 6) 10803 | -6/Factory | System corruption reached 10% 11091 | -6/Factory | Loaded intel: 8 recycling unit locations 11218 | -6/Factory | Fabricated Field Propulsion Array? 11282 | -6/Factory | Build established: Hacker-Sprinter 11314 | -6/Factory | Repaired Broken Mni. Fusion Reactor 11452 | -6/Factory | Repaired Broken Cld. Plasma Cannon 11514 | -6/Factory | Entered Lower Caves 11569 | -6/Lower Caves | Learned location of 2 exits from Factory 11572 | -6/Lower Caves | A Derelict revealed a hidden shortcut to meet someone special 11574 | -6/Lower Caves | Identified exit to Data Miner 11686 | -6/Lower Caves | Spotted B-75 Beast 11707 | -6/Lower Caves | Discovered new exit (range 11) 11709 | -6/Lower Caves | Identified exit to Lower Caves 11745 | -6/Lower Caves | Entered another Lower Caves area 11749 | -6/Lower Caves | Learned Armory trap positions 11749 | -6/Lower Caves | Learned Factory terminal intel 11839 | -6/Lower Caves | Attacked by a faux Warlord 11877 | -6/Lower Caves | Lost 3 allies 11897 | -6/Lower Caves | Discovered exit to Factory (range 11) 11925 | -6/Lower Caves | Learned 4 Factory zone layouts 11926 | -6/Lower Caves | Found Alien Artifact 11926 | -6/Lower Caves | Identified Core Expander 11926 | -6/Lower Caves | Installed Core Expander, added new Propulsion slot 12063 | -6/Lower Caves | Discovered exit to Data Miner (range 12) 12065 | -6/Lower Caves | Entered Data Miner 12065 | -6/Data Miner | Discovered new exit (range 6) 12071 | -6/Data Miner | Met Data Miner 12075 | -6/Data Miner | Learned location of Section 7 (-2) 12075 | -6/Data Miner | Acquired the access code to Warlord's prototype stash 12078 | -6/Data Miner | Received God Mode back door access code from Data Miner 12087 | -6/Data Miner | Data Conduit disabled 12110 | -6/Data Miner | Identified exit to Proximity Caves 12110 | -6/Data Miner | Entered Proximity Caves 12112 | -5/Proximity Caves | Spotter reported a threat 12113 | -5/Proximity Caves | Spotter reported a threat 12210 | -5/Proximity Caves | Learned Factory interactive machine intel 12235 | -5/Proximity Caves | Spotted B-75 Beast 12334 | -5/Proximity Caves | Discovered exit to Factory (range 3) 12335 | -5/Proximity Caves | Entered Factory 12335 | -5/Factory | Evolved 2 slots: Power x1, Utility x1 12336 | -5/Factory | Identified exit to Factory 12336 | -5/Factory | Identified exit to Upper Caves 12338 | -5/Factory | Loaded intel: 52 interactive machine locations 12339 | -5/Factory | Loaded intel: 25 terminal locations 12343 | -5/Factory | Loaded intel: 8 recycling unit locations 12559 | -5/Factory | Spotted B-75 Beast 12574 | -5/Factory | Destroyed 9 combat bots 12921 | -5/Factory | Sucked down chute 12921 | -5/Factory | Entered Waste 12928 | -5/Waste | Spotted C-40 Crusher 12931 | -5/Waste | Spotted C-40 Crusher 12936 | -5/Waste | EMP discharged 12936 | -5/Waste | System corruption reached 10% 12941 | -5/Waste | Spotted C-40 Crusher 12944 | -5/Waste | Spotted C-40 Crusher 12949 | -5/Waste | Spotted C-40 Crusher 12956 | -5/Waste | Discovered new exit (range 11) 12956 | -5/Waste | Spotted C-40 Crusher 12959 | -5/Waste | Identified exit to Factory 12960 | -5/Waste | Entered Factory 12994 | -5/Factory | Spotted B-75 Beast 13071 | -5/Factory | Fabricated Cld. VTOL Module? 13247 | -5/Factory | Discovered exit to Factory (range 15) 13308 | -5/Factory | Learned location of 1 exit from Research 13388 | -5/Factory | Learned Testing emergency access door positions 13432 | -5/Factory | Unchained authorized (6S-H0T) 13434 | -5/Factory | Discovered exit to Factory (range 5) 13445 | -5/Factory | Loaded intel: 8 recycling unit locations 13459 | -5/Factory | Learned Extension emergency access door positions 13486 | -5/Factory | Entered Upper Caves 13632 | -5/Upper Caves | Build established: Sprinter 13635 | -5/Upper Caves | Identified exit to Upper Caves 13639 | -5/Upper Caves | Entered another Upper Caves area 13747 | -5/Upper Caves | Encountered a Warlord checkpoint 13770 | -5/Upper Caves | Spotted B-75 Beast 13980 | -5/Upper Caves | Discovered new exit (range 16) 13984 | -5/Upper Caves | Identified exit to Zhirov 13988 | -5/Upper Caves | Entered Zhirov 13988 | -5/Zhirov | Discovered new exit (range 3) 13993 | -5/Zhirov | Met Zhirov 13999 | -5/Zhirov | Learned location of Command (-1) 14001 | -5/Zhirov | Zhirov requested help retrieving the SGEMP Prototype 14005 | -5/Zhirov | Found Alien Artifact 14005 | -5/Zhirov | Identified Integrated Dissipator 14005 | -5/Zhirov | Installed Integrated Dissipator, increased core heat dissipation (+20) 14011 | -5/Zhirov | Found Alien Artifact 14046 | -5/Zhirov | Identified exit to Proximity Caves 14046 | -5/Zhirov | Entered Proximity Caves 14047 | -4/Proximity Caves | Forged Quantum Companion 14157 | -4/Proximity Caves | Discovered exit to Factory (range 16) 14160 | -4/Proximity Caves | Entered Factory 14160 | -4/Factory | Evolved 2 slots: Propulsion x1, Utility x1 14194 | -4/Factory | Identified Transdimensional Reconstructor 14263 | -4/Factory | Fabricated Graphene Brace? 14352 | -4/Factory | Build established: Hacker-Sprinter 14353 | -4/Factory | Unchained authorized (6S-H0T) 14375 | -4/Factory | Identified exit to Upper Caves 14375 | -4/Factory | Identified exit to Extension 14375 | -4/Factory | Identified exit to Armory 14375 | -4/Factory | Identified exit to Research 14405 | -4/Factory | Loaded intel: 8 recycling unit locations 14488 | -4/Factory | Destroyed 6S-H0T 14491 | -4/Factory | Found ID Mask 14491 | -4/Factory | ID Mask engaged 14495 | -4/Factory | Found 6S-H0T's Six Shooter 14508 | -4/Factory | Spotted B-86 Titan 14510 | -4/Factory | Central database locked down 14514 | -4/Factory | Lost 5 parts (2n2u1w) 14520 | -4/Factory | ID Mask no longer valid 14769 | -4/Factory | Learned 2 Proximity Caves zone layouts 14810 | -4/Factory | Learned Research stockpile data 14837 | -4/Factory | Lost 7 parts (2p4n1u) 14870 | -4/Factory | Learned Quarantine machine intel 14884 | -4/Factory | Learned location of 1 exit from Proximity Caves 14924 | -4/Factory | Spotted B-86 Titan 14939 | -4/Factory | Learned location of 2 exits from Upper Caves 15098 | -4/Factory | Fabricated Mni. Smartbomb Launcher? 15174 | -4/Factory | Sucked down chute 15174 | -4/Factory | Entered Waste 15175 | -4/Waste | Found Broken Exp. Transmission Jammer 15181 | -4/Waste | Spotted C-40 Crusher 15185 | -4/Waste | Spotted C-40 Crusher 15186 | -4/Waste | Spotted C-40 Crusher 15189 | -4/Waste | EMP discharged 15189 | -4/Waste | System corruption reached 10% 15191 | -4/Waste | Spotted C-40 Crusher 15192 | -4/Waste | Spotted C-40 Crusher 15192 | -4/Waste | Spotted C-40 Crusher 15196 | -4/Waste | Crushed by Compactor (1 part destroyed, 2 dropped) 15210 | -4/Waste | Crushed by Compactor (1 part destroyed, 2 dropped) 15211 | -4/Waste | Core integrity fell below 50% 15241 | -4/Waste | Lost 3 parts (1p1n1u) 15241 | -4/Waste | Discovered new exit (range 10) 15252 | -4/Waste | Identified exit to Factory 15253 | -4/Waste | Entered Factory 15376 | -4/Factory | Core integrity fell below 20% 15384 | -4/Factory | Self-destructed Last Messages --------------- 15371_ Lgt. Ion Engine destroyed. 15371_ Slug penetrates U-05 Engineer. 15371_ Slug penetrates Wall. 15373_ K-01 Serf collects debris. 15375_ Penetrated by Slug. 15376_ Wall collapses. 15377_ K-01 Serf collects debris. 15378_ Penetrated by Slug. 15378_ Slug penetrates U-05 Engineer. 15378_ Penetrated by Slug. 15378_ Cld. Cesium-ion Thruster destroyed. 15378_ U-05 Engineer destroyed. 15378_ Slug penetrates H-77 Assassin. 15378_ H-77 Assassin suffers critical hit (Destroy). 15378_ U-05 Engineer destroyed. 15380_ K-01 Serf collects debris. 15383_ Imp. Hacking Suite destroyed. 15383_ Slug penetrates H-77 Assassin. 15383_ K-01 Serf collects debris. Map ----- +----------------------------------------------------+ | ????????????????????????# ## ??????????????? | | ????????????????????????# ## ??????????????? | | ????????????????????????# ## ??????????????? | | ????????????????????????# ## ??????????????? | | ????????????????????????# ## ??????????????? | | ????????????????????????# ## #?????????????? | | ????????????????????????# ## #?????????????? | | ????????????????????????# ## +?????????????? | | ????????????????????????# ## #?????????????? | | ????????????????????????##+##### #?????????????? | | ?????????????????????????# #???# #?????????????? | | ?????????????????????????# #???# #?????????????? | | ?????????????????????????# #???# #?????????????? | | ?????????????????????????# #???# #?????????????? | | ?????????????????????????# #???# % #???###???????? | | ??????????????????#####??# #???# #####"######??? | | ??????????????????# ?# #???# ## #??? | | ??????????????????# ?# #??## ## ! #??? | | ??????????????????# !!! # #??# # #??? | | ??????????????????# !! # #### # #??? | | ??????????????????# !! " T / """ """ #??? | | ??????????????????# # #### # """ """ #??? | | ??????????????????########+#### # """ """ #??? | | ???????????????????????# h h ######## #??? | | ???????????????????????#u #??????###########??? | | ???????????????????????# @ #???????????????????? | | ???????????????????????# ! #???????????????????? | | ???????????????????????# #???????????????????? | | ???????????????????????# %! #???????????????????? | | ???????????????????????# !!= #???????????????????? | | ???????????????????????#*=%= #???????????????????? | | ???????????????????????#!=!! #???????????????????? | | ???????????????????????%!!!! #???????????????????? | | ???????????????????????#!%!k #???????????????????? | | ???????????????????????#!! #???????????????????? | | ?????????????############;#########??????????????? | | ?????????? #?#########????? | | ?????????? #?# ??? | | ?????????? #?# """ ""??? | | ??????????? #?# """ ""??? | | ??????????? #?# """ """?? | | ????????????############# ### #?# ?? | | ???????????????????????# #?# #?# """ """ ? | | ???????????????????????## ??# #?# """ """ # | | ?????????????????????????#??# ### """ """ # | | ????????????????????????????# T## # | | ????????????????????????????# ## # | | ????????????????????????????# ### # | | ????????????????????????????# #?# # | | ?????????????????????######## #####+########## | +----------------------------------------------------+ Best States ------------- Heat Dissipation 63 Energy Generation 39 Energy Capacity 385 Matter Stores 300 Matter Capacity 300 Sight Range 16 Robot Scan Range 16 Terrain Scan Density 10 ECM Strength 1 Power Amplification 30 Additional Mass Support 9 Armor Coverage 450 Resistance: TH 20 Core Shielding 20 Propulsion Shielding 90 Phase Shifting 5 Evasion (%) 74 Melee Accuracy 8 Core Analysis 6 Recoil Reduction 3 Offensive Hacking 26 Defensive Hacking 28 Authchip Count 3 Trap Extractor Capacity 4 Item Schematics ----------------- Plasma Cutter | -9/Materials | Scanalyzed Hcp. Storage Unit | -9/Recycling | Hacked Hacking Suite | -9/Recycling | Hacked Imp. Power Shielding | -9/Recycling | Hacked Field Propulsion Array | -6/Factory | Downloaded Mni. Smartbomb Launcher | -6/Factory | Hacked Adv. Signal Interpreter | -6/Factory | Hacked Mni. Fusion Reactor | -6/Factory | Scanalyzed Cld. VTOL Module | -6/Factory | Scanalyzed Combat Drone Bay | -6/Data Miner | Free Lgt. Regenerative Plating | -6/Data Miner | Free Cld. Gravmag System | -6/Data Miner | Free Exp. Heat Sink | -6/Data Miner | Free Enh. Force Rifle | -6/Data Miner | Free Myomer Leg | -6/Data Miner | Free Adv. Concussive RPG | -6/Data Miner | Free Imp. Remote Force Field | -6/Data Miner | Free Lyr. Medium Armor Plating | -5/Factory | Scanalyzed Assault Drone Bay | -5/Zhirov | Free Exp. Optical Array | -5/Zhirov | Free Imp. Arc Thrower | -5/Zhirov | Free Graphene Brace | -4/Factory | Hacked Com. HERF Cannon | -4/Factory | Hacked Exp. Propulsion Shielding | -4/Factory | Scanalyzed ECM Suite | -4/Factory | Scanalyzed Cmb. Gravmag System | -4/Factory | Scanalyzed Robot Schematics ------------------ A-15 Conveyor | -6/Data Miner | Free B-60 Warrior | -6/Data Miner | Free B-48 Gladiator | -6/Data Miner | Free Fabricated ------------ Field Propulsion Array | x1 | -6/Factory | Authchip Cld. VTOL Module | x1 | -5/Factory | Authchip Graphene Brace | x2 | -4/Factory | Authchip Mni. Smartbomb Launcher | x1 | -4/Factory | Authchip Repaired ---------- Med. Armor Plating | 14% | -9/Storage Mni. Fusion Reactor | 67% | -6/Factory | Broken Cld. Plasma Cannon | 99% | -6/Factory | Broken Studied --------- Grenade Launcher | -9/Materials | Hacked Lgt. Treads | -9/Materials | Hacked Hvy. Assault Rifle | -9/Materials | Hacked Mni. Grenade Launcher | -6/Factory | Hacked Mic. Fission Core | -5/Factory | Hacked Nuclear Pulse Array | -5/Factory | Hacked Matter Neutralizer | -4/Factory | Hacked Alien Tech Used ----------------- Core Expander Integrated Dissipator Achievements -------------- None Challenges ------------ None Game ------ Seed CouplerSensorWall Manual? 0 Play Time 02:54:44 Cumulative 587.7 hours Start 2025.11.19 @ 13:55:00 End 2025.11.20 @ 15:49:46 Sessions 2 Manual Loads 0 Difficulty Rogue Special Mode None Game No. 307 Rogue 307 Adventurer 0 Explorer 0 Win Type - Total 28 Types 14/2/7/1/0/0/1/1/1/1 Lore% 94 Gallery% 90 Achievement% 81 Wizard Run 0 Options --------- Layout 2 ASCII 0 Keyboard 1 Movement Vi Keybinds 0 Fullscreen 1 Font 28/Terminus Map View 50x52 Zoom Use 0% Tactical HUD 1 Map Filters NONE Filters NONE Steam 1 RUN: 5276beee-9f03-442b-810c-2482dc2856cc